fUSD/lending_fUSD_20240225
["ID","MTS","AMOUNT","RATE_DAILY","PERIOD"]
[315142242,1708888239506,-650.36,0.00023984,2]
[315142243,1708888239516,-591.87118054,0.00023984,2]
[315142244,1708888239525,-500.0,0.00023984,2]
[315142245,1708888239535,-628.58,0.00023984,2]
[315142246,1708888239544,-500.0,0.00023985,2]
[315142247,1708888239554,-533.07417099,0.00023985,2]
[315142248,1708888239563,-501.64141366,0.00023985,2]
[315142249,1708888239572,-719.44,0.00023985,2]
[315142250,1708888239582,-521.17193744,0.00023985,2]
[315142251,1708888239591,-500.0,0.00023985,2]
[315142252,1708888239601,-500.0,0.00023985,2]
[315142253,1708888239611,-500.0,0.00023985,2]
[315142254,1708888239621,-500.0,0.00023985,2]
[315142255,1708888239631,-500.0,0.00023985,2]
[315142256,1708888239641,-502.7069096,0.00023985,2]
[315142257,1708888239651,-500.0,0.00023985,2]
[315142258,1708888239662,-507.37900718,0.00023985,2]
[315142259,1708888239673,-375.42205378,0.00023985,2]
[315142260,1708888239684,-756.05,0.00023985,2]
[315142261,1708888239698,-502.45034574,0.00023985,2]
[315142262,1708888239708,-518.5727442,0.00023985,2]
[315142266,1708888240012,-500.0,0.00023985,2]
[315142268,1708888240023,-503.24351628,0.00023985,2]
[315142269,1708888240032,-502.2040757,0.00023985,2]
[315142270,1708888240041,-500.0,0.00023985,2]
[315142271,1708888240051,-500.0,0.00023985,2]
[315142272,1708888240059,-500.0,0.00023985,2]
[315142273,1708888240069,-500.0,0.00023985,2]
[315142274,1708888240078,-500.0,0.00023985,2]
[315142275,1708888240087,-500.0,0.00023985,2]
[315142276,1708888240096,-500.0,0.00023985,2]
[315142277,1708888240105,-507.16614857,0.00023985,2]
[315142278,1708888240114,-500.0,0.00023985,2]
[315142279,1708888240123,-500.0,0.00023985,2]
[315142282,1708888240132,-512.32442604,0.00023985,2]
[315142285,1708888240145,-610.36,0.00023985,2]
[315142287,1708888240154,-500.0,0.00023985,2]
[315142289,1708888240163,-500.0,0.00023985,2]
[315142291,1708888240173,-500.0,0.00023985,2]
[315142293,1708888240182,-500.0,0.00023985,2]
[315142295,1708888240191,-500.0,0.00023985,2]
[315142297,1708888240201,-508.84642281,0.00023985,2]
[315142298,1708888240211,-500.0,0.00023985,2]
[315142299,1708888240221,-500.0,0.00023985,2]
[315142300,1708888240230,-500.0,0.00023985,2]
[315142301,1708888240240,-502.42590821,0.00023985,2]
[315142302,1708888240251,-408.7294573,0.00023985,2]
[315142303,1708888240260,-500.0,0.00023985,2]
[315142304,1708888240269,-500.0,0.00023985,2]
[315142305,1708888240278,-500.0,0.00023985,2]
[315142306,1708888240288,-500.0,0.00023985,2]
[315142307,1708888240297,-505.2841641,0.00023985,2]
[315142308,1708888240306,-500.0,0.00023985,2]
[315142309,1708888240315,-500.0,0.00023985,2]
[315142310,1708888240324,-500.0,0.00023985,2]
[315142311,1708888240333,-500.0,0.00023985,2]
[315142312,1708888240343,-500.0,0.00023985,2]
[315142313,1708888240352,-503.82005875,0.00023985,2]
[315142314,1708888240361,-500.0,0.00023985,2]
[315142315,1708888240370,-500.0,0.00023985,2]
[315142316,1708888240379,-500.0,0.00023985,2]
[315142317,1708888240388,-500.0,0.00023985,2]
[315142318,1708888240397,-527.88041885,0.00023985,2]
[315142319,1708888240406,-500.0,0.00023985,2]
[315142320,1708888240415,-500.0,0.00023985,2]
[315142321,1708888240424,-513.930352,0.00023985,2]
[315142322,1708888240433,-500.0,0.00023985,2]
[315142323,1708888240442,-500.0,0.00023985,2]
[315142324,1708888240451,-500.0,0.00023985,2]
[315142325,1708888240460,-500.0,0.00023985,2]
[315142326,1708888240470,-500.0,0.00023985,2]
[315142327,1708888240479,-500.0,0.00023985,2]
[315142328,1708888240488,-720.23,0.00023985,2]
[315142329,1708888240498,-500.0,0.00023985,2]
[315142330,1708888240507,-503.29691829,0.00023985,2]
[315142331,1708888240516,-500.0,0.00023985,2]
[315142332,1708888240526,-500.0,0.00023985,2]
[315142333,1708888240535,-555.60316394,0.00023985,2]
[315142334,1708888240545,-500.0,0.00023985,2]
[315142335,1708888240554,-500.0,0.00023985,2]
[315142336,1708888240564,-500.0,0.00023985,2]
[315142337,1708888240574,-500.0,0.00023985,2]
[315142338,1708888240583,-500.0,0.00023985,2]
[315142339,1708888240593,-500.0,0.00023985,2]
[315142340,1708888240603,-532.59207618,0.00023985,2]
[315142341,1708888240613,-500.0,0.00023985,2]
[315142342,1708888240623,-790.53,0.00023985,2]
[315142343,1708888240632,-500.0,0.00023985,2]
[315142344,1708888240642,-227.90248156,0.00023985,2]
[315142345,1708888240652,-532.13911625,0.00023985,2]
[315142346,1708888240662,-500.0,0.00023985,2]
[315142347,1708888240672,-500.0,0.00023985,2]
[315142348,1708888240684,-500.0,0.00023985,2]
[315142349,1708888240694,-500.0,0.00023985,2]
[315142350,1708888240703,-500.0,0.00023985,2]
[315142351,1708888240712,-500.0,0.00023985,2]
[315142352,1708888240722,-500.0,0.00023985,2]
[315142353,1708888240731,-519.38932451,0.00023985,2]
[315142354,1708888240741,-500.0,0.00023985,2]
[315142355,1708888240751,-680.85,0.00023985,2]
[315142356,1708888240760,-505.56083128,0.00023985,2]
[315142357,1708888240770,-500.0,0.00023985,2]
[315142358,1708888240779,-500.0,0.00023985,2]
[315142359,1708888240789,-500.0,0.00023985,2]
[315142360,1708888240798,-500.0,0.00023985,2]
[315142361,1708888240808,-500.0,0.00023985,2]
[315142362,1708888240817,-500.0,0.00023985,2]
[315142363,1708888240827,-500.0,0.00023985,2]
[315142364,1708888240836,-500.0,0.00023985,2]
[315142365,1708888240845,-500.0,0.00023985,2]
[315142366,1708888240855,-500.0,0.00023985,2]
[315142367,1708888240864,-500.0,0.00023985,2]
[315142368,1708888240874,-500.0,0.00023985,2]
[315142369,1708888240883,-500.0,0.00023985,2]
[315142370,1708888240893,-500.0,0.00023985,2]
[315142371,1708888240905,-500.0,0.00023985,2]
[315142372,1708888240916,-500.0,0.00023985,2]
[315142373,1708888240925,-500.0,0.00023985,2]
[315142374,1708888240934,-273.49228469,0.00023985,2]
[315142375,1708888240945,-500.0,0.00023985,2]
[315142376,1708888240954,-500.0,0.00023985,2]
[315142377,1708888240964,-500.0,0.00023985,2]
[315142378,1708888240973,-500.0,0.00023985,2]
[315142379,1708888240982,-503.45574224,0.00023985,2]
[315142380,1708888240992,-503.9947682,0.00023985,2]
[315142381,1708888241003,-500.0,0.00023985,2]
[315142382,1708888241012,-500.0,0.00023985,2]
[315142383,1708888241021,-500.0,0.00023985,2]
[315142384,1708888241031,-500.0,0.00023985,2]
[315142385,1708888241040,-500.0,0.00023985,2]
[315142386,1708888241050,-500.0,0.00023985,2]
[315142387,1708888241059,-500.0,0.00023985,2]
[315142388,1708888241068,-523.03413198,0.00023985,2]
[315142389,1708888241078,-500.0,0.00023985,2]
[315142390,1708888241087,-500.0,0.00023985,2]
[315142391,1708888241096,-500.0,0.00023985,2]
[315142392,1708888241105,-500.0,0.00023985,2]
[315142393,1708888241114,-500.0,0.00023985,2]
[315142394,1708888241123,-512.52433773,0.00023985,2]
[315142395,1708888241132,-500.0,0.00023985,2]
[315142396,1708888241141,-500.0,0.00023985,2]
[315142397,1708888241150,-500.0,0.00023985,2]
[315142398,1708888241159,-500.0,0.00023985,2]
[315142399,1708888241167,-500.0,0.00023985,2]
[315142400,1708888241177,-500.0,0.00023985,2]
[315142401,1708888241186,-500.0,0.00023985,2]
[315142402,1708888241195,-500.0,0.00023985,2]
[315142403,1708888241204,-500.0,0.00023985,2]
[315142404,1708888241213,-150.0,0.00023985,2]
[315142405,1708888241223,-500.0,0.00023985,2]
[315142407,1708888241232,-500.0,0.00023985,2]
[315142409,1708888241241,-500.0,0.00023985,2]
[315142411,1708888241251,-500.0,0.00023985,2]
[315142413,1708888241260,-500.0,0.00023985,2]
[315142415,1708888241269,-500.0,0.00023985,2]
[315142417,1708888241278,-500.0,0.00023985,2]
[315142419,1708888241287,-500.0,0.00023985,2]
[315142420,1708888241296,-500.0,0.00023985,2]
[315142422,1708888241306,-500.0,0.00023985,2]
[315142424,1708888241315,-209.48996847,0.00023985,2]
[315142426,1708888241324,-425.60759391,0.00023985,2]
[315142427,1708888241333,-501.69473943,0.00023985,2]
[315142428,1708888241342,-511.58380753,0.00023985,2]
[315142429,1708888241351,-500.0,0.00023985,2]
[315142430,1708888241360,-500.0,0.00023985,2]
[315142431,1708888241369,-500.0,0.00023985,2]
[315142432,1708888241378,-514.2443958,0.00023985,2]
[315142433,1708888241388,-500.0,0.00023985,2]
[315142434,1708888241397,-497.87011519,0.00023985,2]
[315142435,1708888241406,-543.26,0.00023985,2]
[315142436,1708888241415,-502.77483894,0.00023985,2]
[315142437,1708888241424,-505.61235476,0.00023985,2]
[315142438,1708888241434,-500.0,0.00023985,2]
[315142439,1708888241443,-500.0,0.00023985,2]
[315142440,1708888241452,-500.0,0.00023985,2]
[315142441,1708888241462,-500.0,0.00023985,2]
[315142442,1708888241471,-509.00719528,0.00023985,2]
[315142443,1708888241480,-500.0,0.00023985,2]
[315142444,1708888241490,-502.61355767,0.00023985,2]
[315142445,1708888241499,-505.59708295,0.00023985,2]
[315142446,1708888241508,-500.0,0.00023985,2]
[315142447,1708888241517,-500.0,0.00023985,2]
[315142448,1708888241527,-510.3927777,0.00023985,2]
[315142449,1708888241536,-500.0,0.00023985,2]
[315142450,1708888241546,-500.0,0.00023985,2]
[315142451,1708888241556,-511.17081209,0.00023985,2]
[315142452,1708888241565,-500.0,0.00023985,2]
[315142453,1708888241575,-500.0,0.00023985,2]
[315142454,1708888241584,-500.0,0.00023985,2]
[315142455,1708888241594,-500.0,0.00023985,2]
[315142456,1708888241604,-500.0,0.00023985,2]
[315142457,1708888241613,-500.0,0.00023985,2]
[315142458,1708888241623,-500.0,0.00023985,2]
[315142459,1708888241632,-502.90335844,0.00023985,2]
[315142460,1708888241642,-500.0,0.00023985,2]
[315142461,1708888241651,-505.74388808,0.00023985,2]
[315142462,1708888241661,-524.10525622,0.00023985,2]
[315142463,1708888241670,-511.2840908,0.00023985,2]
[315142464,1708888241679,-705.6,0.00023985,2]
[315142465,1708888241689,-542.72,0.00023985,2]
[315142466,1708888241698,-500.0,0.00023985,2]
[315142467,1708888241707,-508.82193844,0.00023985,2]
[315142468,1708888241717,-517.39936023,0.00023985,2]
[315142469,1708888241726,-500.0,0.00023985,2]
[315142470,1708888241735,-500.0,0.00023985,2]
[315142471,1708888241745,-503.36219255,0.00023985,2]
[315142472,1708888241754,-500.0,0.00023985,2]
[315142473,1708888241764,-500.0,0.00023985,2]
[315142474,1708888241773,-500.0,0.00023985,2]
[315142475,1708888241782,-500.0,0.00023985,2]
[315142476,1708888241792,-503.83433714,0.00023985,2]
[315142477,1708888241801,-500.0,0.00023985,2]
[315142478,1708888241811,-500.0,0.00023985,2]
[315142479,1708888241820,-500.0,0.00023985,2]
[315142480,1708888241829,-500.0,0.00023985,2]
[315142481,1708888241839,-500.0,0.00023985,2]
[315142482,1708888241848,-500.0,0.00023985,2]
[315142483,1708888241858,-500.0,0.00023985,2]
[315142484,1708888241867,-556.94544913,0.00023985,2]
[315142485,1708888241876,-182.87561775,0.00023985,2]
[315142486,1708888241885,-500.0,0.00023985,2]
[315142487,1708888241896,-500.0,0.00023985,2]
[315142488,1708888241907,-500.0,0.00023985,2]
[315142489,1708888241916,-511.94629595,0.00023985,2]
[315142490,1708888241926,-500.0,0.00023985,2]
[315142491,1708888241935,-500.0,0.00023985,2]
[315142492,1708888241944,-508.1768392,0.00023985,2]
[315142493,1708888241955,-155.93303735,0.00023985,2]
[315142494,1708888241964,-500.0,0.00023985,2]
[315142495,1708888241974,-500.0,0.00023985,2]
[315142496,1708888241985,-301.2255093,0.00023985,2]
[315142497,1708888241994,-510.31762656,0.00023985,2]
[315142498,1708888242004,-584.22,0.00023985,2]
[315142499,1708888242013,-505.23604458,0.00023985,2]
[315142500,1708888242023,-500.0,0.00023985,2]
[315142501,1708888242032,-506.7126054,0.00023985,2]
[315142502,1708888242042,-1721.12831354,0.00023985,2]
[315142503,1708888242050,-500.0,0.00023985,2]
[315142504,1708888242060,-500.0,0.00023985,2]
[315142505,1708888242069,-500.0,0.00023985,2]
[315142506,1708888242079,-500.0,0.00023985,2]
[315142507,1708888242088,-500.0,0.00023985,2]
[315142508,1708888242097,-500.0,0.00023985,2]
[315142509,1708888242107,-500.92492631,0.00023985,2]
[315142510,1708888242116,-500.0,0.00023985,2]
[315142511,1708888242126,-507.01562252,0.00023985,2]
[315142512,1708888242135,-742.27,0.00023985,2]
[315142513,1708888242144,-500.0,0.00023985,2]
[315142514,1708888242154,-500.0,0.00023985,2]
[315142515,1708888242163,-230.77031471,0.00023985,2]
[315142516,1708888242173,-500.0,0.00023985,2]
[315142517,1708888242183,-507.59057897,0.00023985,2]
[315142518,1708888242192,-500.0,0.00023985,2]
[315142519,1708888242201,-500.0,0.00023985,2]
[315142520,1708888242211,-504.99360171,0.00023985,2]
[315142521,1708888242220,-500.0,0.00023985,2]
[315142522,1708888242230,-500.0,0.00023985,2]
[315142523,1708888242239,-500.0,0.00023985,2]
[315142524,1708888242248,-500.0,0.00023985,2]
[315142525,1708888242257,-500.0,0.00023985,2]
[315142526,1708888242266,-500.0,0.00023985,2]
[315142527,1708888242275,-500.0,0.00023985,2]
[315142528,1708888242285,-507.97666726,0.00023985,2]
[315142529,1708888242294,-504.78483175,0.00023985,2]
[315142530,1708888242304,-500.0,0.00023985,2]
[315142531,1708888242313,-500.0,0.00023985,2]
[315142532,1708888242323,-500.0,0.00023985,2]
[315142533,1708888242332,-500.0,0.00023985,2]
[315142534,1708888242341,-504.39490286,0.00023985,2]
[315142536,1708888242351,-500.0,0.00023985,2]
[315142537,1708888242360,-504.12892669,0.00023985,2]
[315142538,1708888242370,-500.0,0.00023985,2]
[315142539,1708888242379,-258.62937853,0.00023985,2]
[315142540,1708888242388,-502.69227989,0.00023985,2]
[315142541,1708888242397,-594.1,0.00023985,2]
[315142543,1708888242407,-500.0,0.00023985,2]
[315142545,1708888242416,-500.0,0.00023985,2]
[315142547,1708888242426,-507.69933536,0.00023985,2]
[315142549,1708888242435,-500.0,0.00023985,2]
[315142551,1708888242445,-512.79653092,0.00023985,2]
[315142553,1708888242455,-500.00383967,0.00023985,2]
[315142554,1708888242464,-500.0,0.00023985,2]
[315142555,1708888242473,-583.21,0.00023985,2]
[315142556,1708888242482,-501.51476034,0.00023985,2]
[315142557,1708888242491,-501.36379248,0.00023985,2]
[315142558,1708888242502,-178.53839579,0.00023985,2]
[315142559,1708888242511,-517.77066803,0.00023985,2]
[315142560,1708888242521,-500.0,0.00023985,2]
[315142561,1708888242531,-500.0,0.00023985,2]
[315142562,1708888242540,-500.0,0.00023985,2]
[315142563,1708888242550,-500.0,0.00023985,2]
[315142564,1708888242560,-500.0,0.00023985,2]
[315142565,1708888242570,-508.85587923,0.00023985,2]
[315142566,1708888242579,-1578.1,0.00023985,2]
[315142567,1708888242589,-501.75943625,0.00023985,2]
[315142568,1708888242599,-500.0,0.00023985,2]
[315142569,1708888242609,-535.72,0.00023985,2]
[315142570,1708888242619,-489.17150158,0.00023985,2]
[315142571,1708888242629,-500.0,0.00023985,2]
[315142572,1708888242639,-500.0,0.00023985,2]
[315142573,1708888242649,-516.79454792,0.00023985,2]
[315142574,1708888242658,-502.6928588,0.00023985,2]
[315142575,1708888242668,-2431.08,0.00023985,2]
[315142576,1708888242677,-500.0,0.00023985,2]
[315142577,1708888242686,-500.0,0.00023985,2]
[315142578,1708888242696,-500.0,0.00023985,2]
[315142579,1708888242705,-489.62623223,0.00023985,2]
[315142580,1708888242714,-500.0,0.00023985,2]
[315142581,1708888242723,-500.0,0.00023985,2]
[315142582,1708888242733,-1843.1,0.00023985,2]
[315142583,1708888242742,-504.54135406,0.00023985,2]
[315142584,1708888242753,-500.0,0.00023985,2]
[315142585,1708888242762,-500.0,0.00023985,2]
[315142586,1708888242772,-501.69208808,0.00023985,2]
[315142587,1708888242781,-807.87,0.00023985,2]
[315142588,1708888242790,-500.0,0.00023985,2]
[315142589,1708888242799,-515.68379389,0.00023985,2]
[315142590,1708888242808,-503.83499584,0.00023985,2]
[315142591,1708888242818,-505.33266886,0.00023985,2]
[315142592,1708888242827,-500.0,0.00023985,2]
[315142593,1708888242836,-510.7402983,0.00023985,2]
[315142594,1708888242847,-500.0,0.00023985,2]
[315142595,1708888242856,-505.79256036,0.00023985,2]
[315142597,1708888242866,-1116.14,0.00023985,2]
[315142599,1708888242875,-500.0,0.00023985,2]
[315142600,1708888242884,-502.27825237,0.00023985,2]
[315142601,1708888242893,-500.0,0.00023985,2]
[315142602,1708888242904,-502.92292849,0.00023985,2]
[315142603,1708888242915,-511.81392724,0.00023985,2]
[315142605,1708888242924,-500.0,0.00023985,2]
[315142607,1708888242933,-500.0,0.00023985,2]
[315142608,1708888242942,-505.95399319,0.00023985,2]
[315142609,1708888242953,-500.0,0.00023985,2]
[315142610,1708888242963,-500.0,0.00023985,2]
[315142611,1708888242972,-500.0,0.00023985,2]
[315142612,1708888242982,-639.76,0.00023985,2]
[315142613,1708888242991,-500.0,0.00023985,2]
[315142614,1708888243005,-500.0,0.00023985,2]
[315142615,1708888243014,-500.0,0.00023985,2]
[315142616,1708888243023,-500.0,0.00023985,2]
[315142617,1708888243032,-500.0,0.00023985,2]
[315142618,1708888243041,-500.0,0.00023985,2]
[315142619,1708888243051,-501.74462783,0.00023985,2]
[315142620,1708888243061,-500.0,0.00023985,2]
[315142621,1708888243071,-2242.54,0.00023985,2]
[315142622,1708888243081,-500.0,0.00023985,2]
[315142623,1708888243090,-500.0,0.00023985,2]
[315142624,1708888243100,-345.14576245,0.00023985,2]
[315142625,1708888243109,-500.0,0.00023985,2]
[315142626,1708888243119,-500.0,0.00023985,2]
[315142627,1708888243128,-507.81446546,0.00023985,2]
[315142628,1708888243137,-511.92802463,0.00023985,2]
[315142629,1708888243147,-507.79744664,0.00023985,2]
[315142630,1708888243156,-500.0,0.00023985,2]
[315142631,1708888243165,-502.6598259,0.00023985,2]
[315142632,1708888243174,-500.0,0.00023985,2]
[315142633,1708888243182,-500.0,0.00023985,2]
[315142634,1708888243192,-500.0,0.00023985,2]
[315142635,1708888243201,-513.09976335,0.00023985,2]
[315142636,1708888243210,-501.2614507,0.00023985,2]
[315142637,1708888243219,-500.0,0.00023985,2]
[315142638,1708888243229,-500.0,0.00023985,2]
[315142639,1708888243238,-500.0,0.00023985,2]
[315142640,1708888243247,-500.0,0.00023985,2]
[315142641,1708888243257,-500.0,0.00023985,2]
[315142642,1708888243267,-500.0,0.00023985,2]
[315142643,1708888243276,-500.0,0.00023985,2]
[315142644,1708888243285,-502.80084906,0.00023985,2]
[315142645,1708888243294,-500.0,0.00023985,2]
[315142646,1708888243303,-500.0,0.00023985,2]
[315142647,1708888243313,-500.0,0.00023985,2]
[315142648,1708888243322,-504.94832459,0.00023985,2]
[315142649,1708888243333,-509.23763593,0.00023985,2]
[315142650,1708888243342,-500.0,0.00023985,2]
[315142651,1708888243351,-2749.49,0.00023985,2]
[315142652,1708888243361,-500.0,0.00023985,2]
[315142653,1708888243369,-500.0,0.00023985,2]
[315142654,1708888243378,-184.12824066,0.00023985,2]
[315142655,1708888243388,-500.0,0.00023985,2]
[315142656,1708888243397,-500.0,0.00023985,2]
[315142657,1708888243407,-500.0,0.00023985,2]
[315142658,1708888243416,-500.0,0.00023985,2]
[315142659,1708888243425,-500.0,0.00023985,2]
[315142660,1708888243434,-509.31375057,0.00023985,2]
[315142661,1708888243444,-500.0,0.00023985,2]
[315142662,1708888243453,-500.0,0.00023985,2]
[315142663,1708888243462,-503.10710781,0.00023985,2]
[315142664,1708888243472,-500.0,0.00023985,2]
[315142665,1708888243482,-500.0,0.00023985,2]
[315142666,1708888243491,-500.0,0.00023985,2]
[315142667,1708888243502,-426.67368715,0.00023985,2]
[315142668,1708888243512,-500.0,0.00023985,2]
[315142669,1708888243526,-513.05798157,0.00023985,2]
[315142670,1708888243536,-524.79452311,0.00023985,2]
[315142671,1708888243546,-299.48220985,0.00023985,2]
[315142672,1708888243555,-1572.32,0.00023985,2]
[315142673,1708888243565,-516.52683334,0.00023985,2]
[315142674,1708888243574,-500.0,0.00023985,2]
[315142675,1708888243583,-500.0,0.00023985,2]
[315142676,1708888243593,-500.0,0.00023985,2]
[315142677,1708888243602,-3748.12,0.00023985,2]
[315142678,1708888243612,-502.54105057,0.00023985,2]
[315142679,1708888243622,-843.52,0.00023985,2]
[315142680,1708888243631,-1302.1,0.00023985,2]
[315142681,1708888243641,-500.0,0.00023985,2]
[315142682,1708888243651,-500.0,0.00023985,2]
[315142683,1708888243660,-500.0,0.00023985,2]
[315142684,1708888243671,-508.48635901,0.00023985,2]
[315142685,1708888243680,-502.55338879,0.00023985,2]
[315142686,1708888243689,-500.0,0.00023985,2]
[315142687,1708888243699,-504.58451338,0.00023985,2]
[315142688,1708888243708,-500.0,0.00023985,2]
[315142689,1708888243717,-500.0,0.00023985,2]
[315142690,1708888243727,-500.0,0.00023985,2]
[315142691,1708888243737,-500.0,0.00023985,2]
[315142692,1708888243749,-500.0,0.00023985,2]
[315142693,1708888243762,-500.0,0.00023985,2]
[315142694,1708888243771,-503.22,0.00023985,2]
[315142695,1708888243780,-500.0,0.00023985,2]
[315142696,1708888243789,-500.0,0.00023985,2]
[315142697,1708888243798,-500.0,0.00023985,2]
[315142698,1708888243807,-500.0,0.00023985,2]
[315142699,1708888243817,-500.0,0.00023985,2]
[315142700,1708888243826,-500.0,0.00023985,2]
[315142701,1708888243836,-500.0,0.00023985,2]
[315142702,1708888243845,-507.67470476,0.00023985,2]
[315142703,1708888243856,-500.0,0.00023985,2]
[315142704,1708888243866,-368.47807901,0.00023985,2]
[315142705,1708888243875,-500.0,0.00023985,2]
[315142706,1708888243885,-500.0,0.00023985,2]
[315142707,1708888243896,-500.0,0.00023985,2]
[315142708,1708888243908,-500.0,0.00023985,2]
[315142709,1708888244108,-500.0,0.00023985,2]
[315142710,1708888244117,-500.0,0.00023985,2]
[315142711,1708888244127,-500.0,0.00023985,2]
[315142712,1708888244136,-500.0,0.00023985,2]
[315142713,1708888244145,-500.0,0.00023985,2]
[315142714,1708888244154,-544.95,0.00023985,2]
[315142715,1708888244164,-535.3227798,0.00023985,2]
[315142716,1708888244173,-509.26028487,0.00023985,2]
[315142717,1708888244183,-500.0,0.00023985,2]
[315142718,1708888244192,-500.0,0.00023985,2]
[315142719,1708888244202,-516.2254874,0.00023985,2]
[315142720,1708888244211,-503.84734744,0.00023985,2]
[315142721,1708888244220,-500.0,0.00023985,2]
[315142722,1708888244229,-500.0,0.00023985,2]
[315142723,1708888244239,-500.0,0.00023985,2]
[315142724,1708888244249,-500.0,0.00023985,2]
[315142725,1708888244258,-562.06,0.00023985,2]
[315142726,1708888244268,-500.0,0.00023985,2]
[315142727,1708888244277,-224.89174088,0.00023985,2]
[315142728,1708888244286,-500.0,0.00023985,2]
[315142729,1708888244296,-500.0,0.00023985,2]
[315142730,1708888244305,-510.44112437,0.00023985,2]
[315142731,1708888244314,-521.48802816,0.00023985,2]
[315142732,1708888244324,-500.0,0.00023985,2]
[315142733,1708888244336,-500.0,0.00023985,2]
[315142734,1708888244347,-500.0,0.00023985,2]
[315142735,1708888244357,-2840.92,0.00023985,2]
[315142736,1708888244366,-500.0,0.00023985,2]
[315142737,1708888244375,-500.0,0.00023985,2]
[315142738,1708888244384,-500.0,0.00023985,2]
[315142739,1708888244393,-500.0,0.00023985,2]
[315142740,1708888244402,-500.0,0.00023985,2]
[315142741,1708888244411,-500.0,0.00023985,2]
[315142742,1708888244421,-513.10403484,0.00023985,2]
[315142743,1708888244430,-392.15028437,0.00023985,2]
[315142744,1708888244440,-500.0,0.00023985,2]
[315142745,1708888244449,-500.0,0.00023985,2]
[315142746,1708888244458,-596.02,0.00023985,2]
[315142747,1708888244467,-500.0,0.00023985,2]
[315142748,1708888244477,-510.26741631,0.00023985,2]
[315142749,1708888244486,-500.0,0.00023985,2]
[315142750,1708888244495,-500.0,0.00023985,2]
[315142751,1708888244505,-500.0,0.00023985,2]
[315142752,1708888244515,-500.0,0.00023985,2]
[315142753,1708888244525,-500.0,0.00023985,2]
[315142754,1708888244534,-385.88898649,0.00023985,2]
[315142755,1708888244543,-518.88688696,0.00023985,2]
[315142756,1708888244552,-500.0,0.00023985,2]
[315142757,1708888244562,-500.0,0.00023985,2]
[315142758,1708888244572,-500.0,0.00023985,2]
[315142759,1708888244581,-211.84691939,0.00023985,2]
[315142760,1708888244590,-500.0,0.00023985,2]
[315142761,1708888244600,-507.72455178,0.00023985,2]
[315142762,1708888244609,-500.0,0.00023985,2]
[315142763,1708888244618,-508.98600804,0.00023985,2]
[315142764,1708888244628,-642.76,0.00023985,2]
[315142765,1708888244638,-517.13307021,0.00023985,2]
[315142766,1708888244647,-500.0,0.00023985,2]
[315142767,1708888244656,-526.15133865,0.00023985,2]
[315142768,1708888244666,-500.0,0.00023985,2]
[315142769,1708888244676,-500.0,0.00023985,2]
[315142770,1708888244686,-500.0,0.00023985,2]
[315142771,1708888244695,-500.0,0.00023985,2]
[315142772,1708888244704,-500.0,0.00023985,2]
[315142773,1708888244714,-500.0,0.00023985,2]
[315142774,1708888244724,-505.01419667,0.00023985,2]
[315142775,1708888244733,-500.0,0.00023985,2]
[315142776,1708888244743,-500.0,0.00023985,2]